[Event "Rapid Shavuot-A 2023"]
[Site "Ramat Gan"]
[Date "2023.05.25"]
[Round "4.6"]
[White "Uritsky, Yonathan"]
[Black "Kochavi, Ori"]
[Result "1/2-1/2"]
[ECO "B11"]
[WhiteElo "2118"]
[BlackElo "2423"]
[Annotator "TA"]
[PlyCount "80"]
[EventDate "2023.05.19"]
[EventType "swiss"]
[EventCountry "ISR"]
[SourceTitle "playchess.com"]
[Source "ChessBase"]
[SourceQuality "1"]
[TimeControl "900+5"]

{[%evp 10,80,27,19,37,21,31,33,28,24,25,-47,-29,-28,-23,-25,-20,-80,-29,-90,-19,-32,-39,-41,-41,-36,-27,-30,-19,-38,18,25,64,64,83,82,155,137,223,116,116,113,87,-104,-95,-95,-96,-97,-104,-411,-404,-411,-404,-408,-411,-408,-391,-601,-93,-29996,0,-29995,0,-29996,-29995,-29995,-29996,-29996,0,0,0,-29996,0]} 1. e4 {[%emt 0:00:07]} c6 {[%emt 0:00:01]} 2. Nf3 {[%emt 0:00:01]} d5 {[%emt 0:00:00]} 3. Nc3 {[%emt 0:00:01]} dxe4 {[%emt 0:00:01]} 4. Nxe4 {[%emt 0:00:01]} Nf6 {[%emt 0:00:01]} 5. Qe2 {[%emt 0:00:01]} Nxe4 {[%emt 0:00:02]} 6. Qxe4 {[%emt 0:00:01]} Nd7 {[%emt 0:00:01] B11: Caro-Kann: Two Knights Variation.} 7. Bc4 {[%emt 0:00:02]} Nf6 {[%emt 0:00:01] [#]} 8. Ne5 $1 {[%emt 0:00:01][%csl Ge5][%cal Rc4f7]} e6 {[%emt 0:00:01] White is slightly better.} 9. Qe2 {[%emt 0:00:01]} b5 {[%emt 0:00:01]} 10. Nxc6 {[%emt 0:00:06] Recently 10.Bd3 got a lot of attention.} (10. Bb3 $11) 10... Qc7 $1 $15 {[%emt 0:00:02][%cal Ob5c4]} 11. Bd3 {[%emt 0:00:01][%cal Oa2a4]} (11. Bxb5 a6 12. Ba4 Bd7 $19) 11... a6 $36 {[%emt 0:00:43][%mdl 3072] Black has compensation. Black is pushing.} (11... Qxc6 $2 12. Bxb5 $18) 12. Nd4 {[%emt 0:00:21]} Bb7 {[%emt 0:00:03]} 13. Nf3 {[%emt 0:00:43]} (13. O-O $1 $11 {remains equal.}) 13... Bd6 {[%emt 0:00:31] [#]} (13... Nd5 $17 {White must now prevent ...Nf4.} 14. Qd1 Nb4) 14. a4 $146 {[%emt 0:00:11]} (14. c3 $11) ({Predecessor:} 14. O-O O-O 15. h3 e5 16. Ng5 e4 17. Nxe4 Nxe4 18. Bxe4 Rae8 19. d3 f5 20. f3 fxe4 21. dxe4 {0-1 Savchenko,B (2551)-Firouzja,A (2749) Levitov Christmas Online Final blitz 2020 (3.7)}) 14... b4 {[%emt 0:00:09]} (14... Nd5 $17 {And now ...Nf4 would win.} 15. axb5 Nf4) 15. b3 {[%emt 0:00:12]} Nd5 {[%emt 0:00:01]} 16. Bb2 {[%emt 0:01:03]} Nf4 {[%emt 0:00:06][%csl LRe2,LRg2]} 17. Qf1 {[%emt 0:00:01]} O-O {[%emt 0:05:01]} 18. O-O-O {[%emt 0:00:03]} Rfc8 {[%emt 0:01:43]} 19. Bc4 {[%emt 0:00:03]} Qa5 {[%emt 0:01:16]} (19... Bd5 $15) 20. Re1 {[%emt 0:01:08]} Bc6 {[%emt 0:01:14]} 21. Kb1 {[%emt 0:00:45]} Rc7 {[%emt 0:00:27]} 22. h4 {[%emt 0:00:37][%cal Oh4h5]} Qh5 {[%emt 0:02:10]} (22... Bd5 $142) 23. Rg1 $1 $16 {[%emt 0:01:16][%cal Og2g3]} (23. Bxa6 Bd5 $16) 23... Rac8 {[%emt 0:00:51]} (23... Ng6 $16 24. Nd4 (24. Bxa6 Bd5 $16) 24... Bf4) 24. g4 {[%emt 0:00:20]} (24. Bxa6 $18 Bb7 25. Bxb7 Rxb7 26. Qa6) 24... Qa5 {[%emt 0:00:03] [#]} 25. Ne5 {[%emt 0:00:10]} Bd5 {[%emt 0:00:30]} 26. d3 $2 {[%emt 0:00:01]} (26. Bxa6 $16 {keeps the pressure on.} Rxc2 27. Bxc8 Rxc8 28. Qb5 (28. Rc1 Rxc1+ 29. Qxc1 Qa8 $11)) 26... f6 $17 {[%emt 0:00:37]} 27. Bxd5 {[%emt 0:00:36]} exd5 {[%emt 0:00:01]} 28. Nf3 {[%emt 0:00:06]} Rxc2 {[%emt 0:00:01] ...Qc7 would be deadly.} 29. g5 $2 {[%emt 0:01:20][%mdl 8192]} (29. d4 $17 {was the crucial defense.}) 29... Qc7 $19 {[%emt 0:00:03][%cal Oc2b2] Hoping for ...Rxb2+!} 30. gxf6 {[%emt 0:01:25][%cal Rg1g7] [#]} Rxb2+ $1 {[%mdl 512]} 31. Kxb2 {[%emt 0:00:02]} Qc2+ {[%emt 0:00:12]} (31... g6 32. Re3 Qc2+ 33. Ka1 Qxb3 34. Qb1 Qa3+ 35. Qa2 Rc1+ 36. Rxc1 Qxc1+ 37. Qb1 Qa3+ 38. Qa2 Qc1+ 39. Qb1 Qa3+ 40. Qa2 Qc1+ $11) 32. Ka1 {[%emt 0:00:01] Strongly threatening Rc1.} Qxb3 {[%emt 0:01:02][%cal Oc8c2] ( -> ...Rc2!)} ({Don't play} 32... Qxd3 33. Qxd3 Nxd3 34. Rxg7+ Kh8 35. Rd1 Nxf2 36. Rxd5 $18) (32... Nxd3 33. Qe2 Qc3+ 34. Ka2 Qc2+ 35. Ka1 (35. Qxc2 Rxc2+ 36. Kb1 Nxe1 $11) 35... Qc3+ 36. Ka2 Qc2+ 37. Ka1 $11 (37. Qxc2 Rxc2+ 38. Kb1 Nxe1 $11)) 33. Rxg7+ {[%emt 0:00:42]} (33. Re2 $142 Qc3+ 34. Rb2 Nxd3 {[%mdl 64] Pin} 35. Qe2) 33... Kf8 $2 {[%emt 0:00:17]} (33... Kh8 $19 {and Black stays clearly on top.} 34. Qg1 Qc3+ 35. Kb1 Qxd3+ 36. Ka1 Qc3+ 37. Kb1 Qd3+ 38. Ka1 Qc3+ 39. Kb1 Qb3+ 40. Ka1 Qc3+) 34. Ng5 $2 {[%emt 0:01:10][%mdl 8192]} (34. Qg1 $17 Qc3+ 35. Kb1 Qxd3+ 36. Ka1 Qc3+ 37. Kb1) 34... Qa3+ {[%emt 0:00:09]} 35. Kb1 {[%emt 0:00:01][%cal Rg5h7]} Qb3+ {[%emt 0:00:02]} 36. Ka1 {[%emt 0:00:01][%cal Rg5h7]} Qxa4+ {[%emt 0:00:02]} 37. Kb1 {[%emt 0:00:01]} Qb3+ {[%emt 0:00:02]} 38. Ka1 {[%emt 0:00:01]} Qa4+ {[%emt 0:00:23]} ({Resist} 38... Qxd3 39. Qxd3) 39. Kb1 {[%emt 0:00:03][%cal Rg5h7]} Qb3+ {[%emt 0:00:07]} 40. Ka1 {[%emt 0:00:02][%cal Rg5h7]} Qa3+ $2 {[%emt 0:00:28] An interesting game.   Weighted Error Value: White=0.55/Black=0.63} ({Much less strong is} 40... Qxd3 41. Qxd3 {[%mdl 64] Remove Defender}) (40... Rc1+ {mates} 41. Rxc1 Be5+ 42. d4 Bxd4+ 43. Rc3 Bxc3#) 1/2-1/2

[Event "Rapid Shavuot-A 2023"]
[Site "Ramat Gan"]
[Date "2023.05.25"]
[Round "4.7"]
[White "Iliaguev, Nisim"]
[Black "Andreev, Dmitri"]
[Result "1-0"]
[ECO "A14"]
[WhiteElo "2402"]
[BlackElo "2166"]
[Annotator "TA"]
[PlyCount "107"]
[EventDate "2023.05.19"]
[EventType "swiss"]
[EventCountry "ISR"]
[SourceTitle "playchess.com"]
[Source "ChessBase"]
[SourceQuality "1"]
[TimeControl "900+5"]

{[%evp 24,107,6,0,0,0,0,0,0,0,4,6,7,10,6,4,157,145,150,126,144,85,144,148,147,133,137,134,179,135,129,122,177,180,166,129,200,190,199,183,251,251,345,345,414,410,399,321,398,327,325,305,314,313,585,569,1545,884,821,772,1308,683,6275,6095,6307,5689,5273,4133,29970,29973,29968,29970,29977,29978,29978,29979,29979,29980,29980,29981,29985,29985,29987,29988,29988,29989]} 1. c4 {[%emt 0:00:03]} Nf6 {[%emt 0:00:18]} 2. g3 {[%emt 0:00:01]} e6 {[%emt 0:00:20]} 3. Bg2 {[%emt 0:00:01]} d5 {[%emt 0:00:11]} 4. Nf3 {[%emt 0:00:02]} Be7 {[%emt 0:00:14]} 5. O-O {[%emt 0:00:03]} O-O {[%emt 0:00:06]} 6. b3 {[%emt 0:00:02]} c5 {[%emt 0:00:39]} 7. Bb2 {[%emt 0:00:01]} Nc6 {[%emt 0:00:13]} 8. d3 {[%emt 0:00:06]} b6 {[%emt 0:00:26]} 9. Nbd2 {[%emt 0:00:17]} Bb7 {[%emt 0:00:06]} 10. cxd5 {[%emt 0:00:20]} Nxd5 {[%emt 0:00:22]} 11. Nc4 {[%emt 0:00:08]} Bf6 {[%emt 0:00:32]} 12. Qd2 {[%emt 0:00:10]} Bxb2 {[%emt 0:00:48]} 13. Qxb2 {[%emt 0:00:02]} Qe7 {[%emt 0:00:24] A14: English Opening: 1...e6 with b3 by White.} 14. Rac1 {[%emt 0:00:16]} Rfd8 {[%emt 0:00:19]} 15. Rfd1 {[%emt 0:00:03]} Rac8 {[%emt 0:00:41] The position is equal.} 16. d4 {[%emt 0:01:06] [#]} cxd4 $146 {[%emt 0:01:34]} ({Predecessor:} 16... b5) 17. Nxd4 {[%emt 0:00:04]} Nxd4 {[%emt 0:01:06]} 18. Rxd4 {[%emt 0:00:12]} b5 {[%emt 0:02:07]} 19. Na5 {[%emt 0:01:24]} (19. Rg4 Qf6 20. Qa3 (20. Qxf6 $2 Nxf6 21. Bxb7 Nxg4 $19) 20... Nc3 21. Bxb7 Nxe2+ 22. Kg2 Nxc1 $19) 19... b4 $2 {[%emt 0:01:00]} (19... Rxc1+ $11 20. Qxc1 Ba8) 20. Nxb7 $16 {[%emt 0:00:48]} Qxb7 {[%emt 0:00:31]} 21. Rcc4 {[%emt 0:00:06]} a5 {[%emt 0:00:40]} 22. h3 {[%emt 0:00:01]} (22. Rg4 $6 f5 23. Rxc8 Rxc8 $14) (22. Qd2 $142 {aiming for e4.} Re8 23. Rxc8 (23. Bxd5 exd5 24. Rxc8 Rxc8 $16) 23... Qxc8 24. Bxd5 exd5 25. Rxd5) 22... Qa6 {[%emt 0:01:12]} ({Better is} 22... Rd7) 23. Qd2 {[%emt 0:00:47]} (23. Rg4 Nc3 24. Bf3 e5 25. Rxc8 Qxc8 $17) 23... Re8 {[%emt 0:00:51]} 24. Bxd5 $40 {[%emt 0:01:08][%mdl 128] Black is in trouble.} exd5 {[%emt 0:00:02]} 25. Rxc8 {[%emt 0:00:02]} Qxc8 {[%emt 0:00:20][%mdl 4096] Endgame KQR-KQR} 26. h4 {[%emt 0:00:31]} h6 {[%emt 0:00:53]} 27. Rxd5 {[%emt 0:00:12]} Qa8 {[%emt 0:00:30]} (27... Qc3 $16 {was necessary.} 28. Qd1 Qb2) 28. e3 $18 {[%emt 0:00:11]} Rc8 {[%emt 0:00:20]} 29. Qd3 {[%emt 0:00:20]} Rc1+ {[%emt 0:00:09]} (29... a4 $16 {might work better.} 30. bxa4 Qxa4) 30. Kh2 {[%emt 0:00:09] [#] Rd8+ would be deadly.} Rc8 {[%emt 0:00:06] Prevents Rd8+.} 31. Qf5 {[%emt 0:00:28]} Qc6 {[%emt 0:00:19]} (31... g6 $142 32. Qd3 h5) 32. Rxa5 {[%emt 0:00:21]} g6 {[%emt 0:00:05]} 33. Qf4 {[%emt 0:00:46][%csl LRb4,LRh6]} Qc2 {[%emt 0:00:07]} 34. Ra7 {[%emt 0:00:07]} (34. Qxb4 {is a self mate.} Qxf2+ 35. Kh3 Qf1+ 36. Kh2 Rc2+) 34... Rf8 {[%emt 0:00:05]} 35. Kg2 {[%emt 0:00:15]} (35. Qxb4 $2 {loses.} Qxf2+ 36. Kh3 Qf1+ 37. Kh2 Rd8 $19) 35... Qc5 {[%emt 0:00:07]} 36. Rc7 {[%emt 0:00:20]} Qa5 {[%emt 0:00:08]} 37. Rc4 {[%emt 0:00:12]} Qxa2 {[%emt 0:00:08]} 38. Rxb4 {[%emt 0:00:02]} ({But not} 38. Qxh6 Qxb3 39. Qf4 Qa4 40. Rxb4 Qc6+ 41. Qf3 Rc8 42. Qxc6 Rxc6 $18) 38... h5 $2 {[%emt 0:00:04]} (38... Qa8+ {was worth a try.} 39. Qf3 Rb8 40. Qxa8 Rxa8) 39. Rb8 {[%emt 0:00:23]} Qa3 {[%emt 0:00:09]} 40. Rxf8+ {[%emt 0:00:07]} Kxf8 {[%emt 0:00:01] KQ-KQ} 41. Qb8+ {[%emt 0:00:06]} Kg7 {[%emt 0:00:03]} 42. Qb7 {[%emt 0:00:02] [#] Strongly threatening b4.} Qb2 {[%emt 0:00:06]} 43. b4 {[%emt 0:00:03][%cal Bb3b4,Bb4b5,Bb5b6][%mdl 32]} Qe5 {[%emt 0:00:05]} 44. b5 {[%emt 0:00:18] Threatening mate with Qc6.} g5 {[%emt 0:00:02]} 45. hxg5 {[%emt 0:00:17]} h4 {[%emt 0:00:07]} 46. gxh4 {[%emt 0:00:58] White mates.} Qf5 {[%emt 0:00:01]} 47. Qb8 {[%emt 0:01:24]} Qd5+ {[%emt 0:00:04]} 48. Kg3 {[%emt 0:00:20]} Qh1 {[%emt 0:00:06]} 49. b6 {[%emt 0:00:53]} Qg1+ {[%emt 0:00:04]} 50. Kf3 {[%emt 0:00:02]} Qd1+ {[%emt 0:00:06]} 51. Kg2 {[%emt 0:00:18]} Qd5+ {[%emt 0:00:05]} 52. Kh2 {[%emt 0:00:04]} Qd2 {[%emt 0:00:08]} 53. Qf4 {[%emt 0:00:04]} Qb2 {[%emt 0:00:06]} 54. Qd4+ {[%emt 0:00:02] Weighted Error Value: White=0.27 (precise) /Black=0.61} 1-0

[Event "Rapid Shavuot-A 2023"]
[Site "Ramat Gan"]
[Date "2023.05.25"]
[Round "4.8"]
[White "Levitan, Tal"]
[Black "Kinberg, Ofer"]
[Result "1-0"]
[ECO "C49"]
[WhiteElo "2328"]
[BlackElo "1918"]
[Annotator "TA"]
[PlyCount "69"]
[EventDate "2023.05.19"]
[EventType "swiss"]
[EventCountry "ISR"]
[SourceTitle "playchess.com"]
[Source "ChessBase"]
[SourceQuality "1"]
[TimeControl "900+5"]

{[%evp 15,69,37,54,48,60,25,19,17,25,14,25,0,0,0,0,-72,-69,-152,-155,-149,-165,-150,-152,-159,-168,-152,-80,-98,-65,-122,-104,-102,-103,-174,-160,-211,29,29,29,29,138,29,14,24,36,36,571,518,29986,29987,29987,29988,29997,29998,29998,29999]} 1. e4 {[%emt 0:00:05]} e5 {[%emt 0:00:01]} 2. Nf3 {[%emt 0:00:00]} Nc6 {[%emt 0:00:01]} 3. Nc3 {[%emt 0:00:04]} Nf6 {[%emt 0:00:04]} 4. Bb5 {[%emt 0:00:02]} Bb4 {[%emt 0:00:03]} 5. O-O {[%emt 0:00:06]} Bxc3 {[%emt 0:00:13]} 6. bxc3 {[%emt 0:00:57]} d6 {[%emt 0:02:09]} 7. Re1 {[%emt 0:01:53]} O-O {[%emt 0:00:11]} 8. d4 {[%emt 0:00:04]} Bd7 {[%emt 0:05:06]} 9. Bg5 {[%emt 0:02:29] C49: Four Knights: 4 Bb5 Bb4.} Qe7 {[%emt 0:01:23]} 10. d5 {[%emt 0:00:34]} Nb8 {[%emt 0:00:42][%cal Bc6b8,Bb8d7,Bd7c5,Bc5d3][%mdl 32] [#]} 11. Rb1 $146 {[%emt 0:00:52] The position is equal.} ({Predecessor:} 11. Bxd7 Nbxd7 12. c4 Qe8 13. Qd2 Nh5 14. h3 h6 15. Be3 Kh7 16. Nh4 Nhf6 17. f3 {½-½ Andrade Mederos,N-Berenguer Gonzalez,A CUB-ch Seniors corr0204 2004}) 11... Bc8 {[%emt 0:02:01]} 12. Bd3 {[%emt 0:01:14]} Nbd7 {[%emt 0:00:06]} 13. Nh4 {[%emt 0:00:34]} Nc5 {[%emt 0:00:33]} 14. Qf3 {[%emt 0:00:22]} h6 {[%emt 0:00:19]} 15. Be3 {[%emt 0:00:46]} (15. Bxf6 $11 Qxf6 16. Qxf6 gxf6 17. Nf3) 15... Nfxe4 $17 {[%emt 0:00:29][%mdl 64] Discovered Attack. A dynamic duo of knights.} 16. Nf5 {[%emt 0:02:12]} (16. Bxe4 $15 Qxh4 17. Bxc5) 16... Bxf5 {[%emt 0:00:14]} 17. Qxf5 {[%emt 0:00:01] [#] Bxc5 would be deadly.} Nxd3 {[%emt 0:01:01]} (17... Nxc3 $2 18. Qh7#) 18. cxd3 {[%emt 0:01:19]} Nxc3 {[%emt 0:00:01]} 19. Rxb7 {[%emt 0:00:26]} Nxd5 {[%emt 0:00:16]} ({Inferior is} 19... Nxa2 20. Qg4 a5 21. Bxh6 $15) 20. Bxa7 {[%emt 0:00:02]} Nf6 {[%emt 0:00:55] Inhibits Qe4.} (20... Qe6 $142 21. Qxe6 fxe6) 21. Rc1 {[%emt 0:00:25]} Ne8 {[%emt 0:00:28]} 22. h3 {[%emt 0:00:20]} (22. g3 $15) 22... Qe6 {[%emt 0:00:07]} 23. Qxe6 {[%emt 0:00:24]} fxe6 {[%emt 0:00:01]} 24. a4 {[%emt 0:00:02]} (24. Rc3 $17) 24... Rf4 $19 {[%emt 0:00:10]} 25. Ra1 {[%emt 0:00:02]} (25. a5 $17) 25... Kf7 $2 {[%emt 0:00:28]} ({Black should play} 25... c5 $19 {...Rf7 is the strong threat.} 26. a5 Rf7 27. Rxf7 Kxf7) 26. a5 $11 {[%emt 0:00:04][%cal Ba4a5,Ba5a6,Ba6a7][%mdl 1056] Strongly threatening Be3. White has compensation.} Ke7 {[%emt 0:00:01]} 27. a6 $36 {[%emt 0:00:32][%mdl 2048] And now Be3 would win. White has good play.} Rf8 {[%emt 0:00:08]} (27... Rf7 $1 $11 {keeps the balance.}) 28. Bb8 {[%emt 0:00:28] White is more active.} ({Only move:} 28. Be3 $16) 28... Kd7 {[%emt 0:00:02]} 29. a7 {[%emt 0:00:01]} Kc6 {[%emt 0:00:10]} 30. Rb4 {[%emt 0:00:11] Hoping for Rc1+.} Nf6 $2 {[%emt 0:00:01][%mdl 8192]} ({Better is} 30... Kd7 $14) 31. Rc1+ {[%emt 0:00:04]} Kd7 {[%emt 0:00:01]} (31... Kd5 $18 32. Bxc7 Rfc8 33. Rb5+ Kd4) 32. Rxc7+ {[%emt 0:00:04] White mates.} ({Less strong is} 32. Bxc7 Rxa7 33. Bb8 Rc8 34. Rxc8 Ra1+ 35. Kh2 Kxc8 36. Bxd6 Nd7 $16) 32... Kd8 {[%emt 0:00:01]} 33. Rxg7 {[%emt 0:00:06][%mdl 64] Discovered Attack} Nd5 {[%emt 0:00:04] [#]} 34. Bc7+ $1 {[%emt 0:00:15][%mdl 576] Back Rank, Clearance, Promotion} Nxc7 {[%emt 0:00:01]} (34... Ke8 35. Rb8+) 35. Rb8+ {[%emt 0:00:01][%mdl 64] Back Rank. White used his chance.   Weighted Error Value: White=0.26 (precise) /Black=0.62} 1-0

[Event "Rapid Shavuot-A 2023"]
[Site "Ramat Gan"]
[Date "2023.05.25"]
[Round "4.9"]
[White "Rozen, Eytan"]
[Black "Mindlin, Alon"]
[Result "0-1"]
[ECO "A01"]
[WhiteElo "2417"]
[BlackElo "2435"]
[Annotator "TA"]
[PlyCount "108"]
[EventDate "2023.05.19"]
[EventType "swiss"]
[EventCountry "ISR"]
[SourceTitle "playchess.com"]
[Source "ChessBase"]
[SourceQuality "1"]
[TimeControl "900+5"]

{[%evp 9,108,12,18,14,13,8,33,0,0,0,0,0,0,0,0,0,0,0,0,0,0,0,8,-21,-22,-24,-19,-50,-8,-13,-15,-37,-44,-75,-27,-58,-52,-50,-56,-70,0,-12,-16,-11,0,0,0,0,0,0,0,0,0,-139,-139,-139,-139,-139,-139,-139,-133,-134,-8,-8,-8,-8,-8,-8,-8,-437,-386,-569,-559,-512,-541,-477,-452,-483,-481,-380,-218,-218,-218,-1404,-1359,-5416,-5408,-5065,-4133,-29976,-29977,-29977,-29978,-29978,-29979,-29979,-29980,-29979,-29980,-29984,-29985]} 1. c4 {[%emt 0:00:18]} e5 {[%emt 0:00:04]} 2. b3 {[%emt 0:00:07]} Nf6 {[%emt 0:00:20]} 3. Bb2 {[%emt 0:00:02]} Nc6 {[%emt 0:00:03]} 4. e3 {[%emt 0:00:05]} g6 {[%emt 0:00:56]} 5. Nf3 {[%emt 0:00:13]} d6 {[%emt 0:00:03]} 6. d4 {[%emt 0:00:07] A01: Nimzowitsch-Larsen Opening.} Bg7 {[%emt 0:00:03]} 7. d5 {[%emt 0:00:29]} Ne7 {[%emt 0:00:21][%cal Ob7b5]} 8. Nbd2 {[%emt 0:00:04] White is slightly better.} O-O {[%emt 0:00:04]} 9. Be2 {[%emt 0:01:09] [#]} c6 $146 {[%emt 0:02:26]} ({Predecessor:} 9... Nd7 10. g4 Nc5 11. Rg1 a5 12. Ba3 f5 13. g5 e4 14. Nd4 f4 15. Qc2 fxe3 16. fxe3 {0-1 Hermann,M-Rostalski,W (2270) Oberliga Nord N 9495 1994}) 10. dxc6 {[%emt 0:00:02]} Nxc6 {[%emt 0:00:07]} 11. O-O {[%emt 0:00:07]} Re8 {[%emt 0:00:13]} 12. Rc1 {[%emt 0:01:28]} Bf5 {[%emt 0:00:14]} 13. Nh4 {[%emt 0:00:24]} Be6 {[%emt 0:00:04]} 14. Nhf3 {[%emt 0:00:03][%cal Bh4f3,Bf3e1,Be1c2][%mdl 32]} h6 {[%emt 0:01:21]} 15. e4 {[%emt 0:00:15]} Nd7 {[%emt 0:00:31]} 16. Ne1 {[%emt 0:00:23]} Nc5 {[%emt 0:00:16]} 17. Nc2 {[%emt 0:00:22]} a5 {[%emt 0:00:59]} 18. Bc3 {[%emt 0:00:12]} Qh4 {[%emt 0:00:22]} 19. Ne3 {[%emt 0:01:20]} Nd4 {[%emt 0:00:18]} 20. Nd5 {[%emt 0:00:20]} Bxd5 {[%emt 0:00:25]} ({Much worse is} 20... Nxe4 21. Nxe4 Qxe4 22. Bd3 $11) 21. exd5 {[%emt 0:01:08]} f5 {[%emt 0:00:03] Black is much more active.} (21... e4 $17 {Hoping for ...e3.} 22. Nb1 Be5) 22. Nf3 {[%emt 0:01:52]} Nxf3+ 23. Bxf3 {[%emt 0:00:01]} e4 {[%emt 0:01:04]} 24. Bxg7 {[%emt 0:00:14]} exf3 {[%emt 0:00:17]} (24... Kxg7 $15 25. Be2 Qf6) 25. Bc3 {[%emt 0:00:57]} fxg2 {[%emt 0:01:02]} 26. Kxg2 {[%emt 0:00:42]} Re4 {[%emt 0:00:52]} (26... Ne4 {simplifies} 27. Rc2 Nxc3 28. Rxc3 Qe4+) 27. f3 {[%emt 0:01:09]} Re3 $40 {[%emt 0:00:00][%mdl 128] ...Nd3 is the strong threat. Black has some attack.} 28. Qd2 {[%emt 0:00:18][%csl LRa5,LRe3] Inhibits Nd3.} Rae8 {[%emt 0:00:24]} 29. Rce1 {[%emt 0:00:02] Repels Re2+} Qf4 {[%emt 0:01:39]} 30. Rxe3 {[%emt 0:00:35]} Rxe3 {[%emt 0:00:03]} 31. Bd4 {[%emt 0:00:07] Repels Ne4} (31. Qd4 $11 Qxd4 32. Bxd4) 31... Qg5+ $17 {[%emt 0:00:23]} 32. Kh1 {[%emt 0:00:03] [#]} Rxf3 {[%emt 0:00:12][%mdl 576] Discovered Attack} 33. Qxg5 {[%emt 0:00:02]} Rxf1+ {[%emt 0:00:01]} 34. Kg2 {[%emt 0:00:06] White wants to mate with Qe7.} hxg5 {[%emt 0:00:02]} 35. Kxf1 {[%emt 0:00:01][%mdl 4096] Endgame KB-KN} b6 {[%emt 0:00:27]} (35... g4 $1 $17 {Black wants to play ...f4.} 36. Ke2 Kf7) 36. Bf6 $11 {[%emt 0:00:04]} a4 {[%emt 0:00:13]} 37. Bxg5 {[%emt 0:01:32]} axb3 {[%emt 0:00:03]} 38. axb3 {[%emt 0:00:01]} Nxb3 {[%emt 0:00:02] ...Na5 would be deadly.} 39. Bf4 $2 {[%emt 0:00:08][%mdl 8192] This move loses the game for White.} (39. Ke2 $1 $11 {and White has nothing to worry.}) 39... Na5 $19 {[%emt 0:00:23]} 40. Bxd6 {[%emt 0:00:18]} (40. Ke2 {might work better.} Nxc4 41. h4) 40... Nxc4 {[%emt 0:00:01]} 41. Bf4 {[%emt 0:00:05] [#]} b5 $1 {[%emt 0:00:17][%cal Bb6b5,Bb5b4,Bb4b3][%mdl 32]} 42. Ke2 {[%emt 0:00:06]} Nb6 {[%emt 0:00:02]} 43. d6 {[%emt 0:00:10]} Kf7 {[%emt 0:00:01]} 44. Kd3 {[%emt 0:00:06]} Ke6 {[%emt 0:00:01]} (44... Nd5 $142 45. Be5 Ke6) 45. Kd4 {[%emt 0:00:04]} Nd7 {[%emt 0:00:25] Strongly threatening ...Nf6.} 46. h4 $2 {[%emt 0:00:08] [#]} (46. Bg3) 46... b4 $1 {[%emt 0:00:25] aiming for ...b3.} 47. Kc4 {[%emt 0:00:14]} Nb6+ {[%emt 0:00:01]} 48. Kd4 {[%emt 0:00:29]} b3 {[%emt 0:00:05] ( -> ...b2)} 49. Bc1 {[%emt 0:00:16]} Na4 {[%emt 0:00:01] Black mates.} 50. d7 {[%emt 0:00:39]} Kxd7 {[%emt 0:00:00]} 51. Ke5 {[%emt 0:00:03]} Ke7 {[%emt 0:00:44]} ({Weaker is} 51... b2 52. Bxb2 Nxb2 53. h5 Nc4+ 54. Kf6 $17) 52. h5 {[%emt 0:00:06]} Kf7 {[%emt 0:00:01]} ({Inferior is} 52... b2 53. Bxb2 Nxb2 54. hxg6 $11) 53. Kf4 {[%emt 0:00:05]} Kf6 {[%emt 0:00:07]} 54. Kg3 {[%emt 0:00:08]} gxh5 {[%emt 0:00:05] Excellently played by Mindlin!   Weighted Error Value: White=0.58/Black=0.12 (very precise)} 0-1